bitfinex/quotes_BTCUSD_20241211
["timestamp","ask_amount","ask_price","bid_price","bid_amount"]
[1733901743344,0.00028425,97700.0,97699.0,1.31525201]
[1733901743549,0.00028425,97700.0,97699.0,1.30625201]
[1733901743798,0.00028425,97700.0,97699.0,1.30125201]
[1733901744011,0.00028425,97700.0,97699.0,1.16348443]
[1733901744214,0.00028425,97700.0,97699.0,1.35417453]
[1733901744416,0.00028425,97700.0,97699.0,1.17948443]
[1733901744747,0.00028425,97700.0,97699.0,1.36314857]
[1733901745166,0.00028425,97700.0,97699.0,1.17048443]
[1733901745587,0.00028425,97700.0,97699.0,1.17948443]
[1733901746227,0.00028425,97700.0,97699.0,1.17248443]
[1733901746435,0.00028425,97700.0,97699.0,1.36210683]
[1733901746646,0.00028425,97700.0,97699.0,1.76954301]
[1733901746860,0.00028425,97700.0,97699.0,1.76354301]
[1733901747006,0.00028425,97700.0,97699.0,1.75454301]
[1733901747216,0.00028425,97700.0,97699.0,1.77154301]
[1733901747555,0.00028425,97700.0,97699.0,1.76254301]
[1733901747815,0.00028425,97700.0,97699.0,1.75454301]
[1733901748015,0.00028425,97700.0,97699.0,1.77152381]
[1733901748128,0.00028425,97700.0,97699.0,1.76252381]
[1733901748330,0.00028425,97700.0,97699.0,1.57892061]
[1733901748535,0.00028425,97700.0,97699.0,1.58792061]
[1733901752539,0.00028425,97700.0,97699.0,1.72557556]
[1733901752713,0.00028425,97700.0,97699.0,1.20882061]
[1733901752915,0.00028425,97700.0,97699.0,1.30059205]
[1733901753887,0.00028425,97700.0,97699.0,1.29948305]
[1733901754082,0.00028425,97700.0,97699.0,1.44948305]
[1733901755668,0.00028425,97700.0,97699.0,1.04204687]
[1733901757355,0.00028425,97700.0,97699.0,0.95027543]
[1733901758821,0.00028425,97700.0,97699.0,1.08793038]
[1733901759030,0.00028425,97700.0,97699.0,0.95027543]
[1733901760548,0.00028425,97700.0,97699.0,1.08793038]
[1733901762448,0.00028425,97700.0,97699.0,0.95027543]
[1733901764372,0.00028425,97700.0,97699.0,1.13395788]
[1733901765332,0.00028425,97700.0,97699.0,0.95027543]
[1733901767425,0.00028425,97700.0,97699.0,1.1798785]
[1733901768518,0.00028425,97700.0,97699.0,0.95027543]
[1733901770356,0.00028425,97700.0,97699.0,0.65749667]
[1733901770548,0.00028425,97700.0,97699.0,0.80027543]
[1733901771406,0.00028425,97700.0,97699.0,0.93824845]
[1733901772502,0.00028425,97700.0,97699.0,0.80027543]
[1733901773649,0.00028425,97700.0,97699.0,0.68425447]
[1733901773848,0.00028425,97700.0,97699.0,0.619814]
[1733901774024,0.08288425,97700.0,97699.0,0.619814]
[1733901774636,0.08288425,97700.0,97699.0,0.622933]
[1733901774867,0.08288425,97700.0,97699.0,0.613933]
[1733901775074,0.08288425,97700.0,97699.0,0.618933]
[1733901775230,0.08288425,97700.0,97699.0,0.627933]
[1733901775436,0.08288425,97700.0,97699.0,0.622933]
[1733901775639,0.08288425,97700.0,97699.0,0.613933]
[1733901775923,0.08288425,97700.0,97699.0,0.626933]
[1733901779123,0.08288425,97700.0,97699.0,0.422223]
[1733901779338,0.10588425,97700.0,97699.0,0.16689776]
[1733901779537,0.10588425,97700.0,97699.0,0.31689776]
[1733901779538,0.16415239,97700.0,97699.0,0.31689776]
[1733901779740,0.16934764,97700.0,97699.0,0.31689776]
[1733901780312,0.1597795,97700.0,97699.0,0.31689776]
[1733901780586,0.16934537,97700.0,97699.0,0.31689776]
[1733901782611,0.1597795,97700.0,97699.0,0.31689776]
[1733901782743,0.16934147,97700.0,97699.0,0.31689776]
[1733901783872,0.16933974,97700.0,97699.0,0.31689776]
[1733901784072,0.16933974,97700.0,97699.0,0.16689776]
[1733901786302,0.16933974,97700.0,97699.0,0.31689776]
[1733901786571,0.16933974,97700.0,97699.0,0.16689776]
[1733901787715,0.16414449,97700.0,97699.0,0.16689776]
[1733901787905,0.16414449,97700.0,97699.0,0.31689776]
[1733901788084,0.16933901,97700.0,97699.0,0.31689776]
[1733901788268,0.16933901,97700.0,97699.0,0.16689776]
[1733901788448,0.16933901,97700.0,97699.0,0.31689776]
[1733901789024,0.15977877,97700.0,97699.0,0.31689776]
[1733901789149,0.16933273,97700.0,97699.0,0.31689776]
[1733901789560,0.16933265,97700.0,97699.0,0.16689776]
[1733901789800,0.03803265,97700.0,97699.0,0.31689776]
[1733901789965,0.02847877,97700.0,97699.0,0.422223]
[1733901790196,0.00028425,97700.0,97699.0,0.422223]
[1733901790768,0.00028425,97700.0,97699.0,0.43266331]
[1733901790990,0.00028425,97700.0,97699.0,0.28266331]
[1733901791191,0.00028425,97700.0,97699.0,0.43266331]
[1733901791595,0.00028425,97700.0,97699.0,0.51566331]
[1733901791745,0.00028425,97700.0,97699.0,0.505223]
[1733901795239,0.00028425,97700.0,97699.0,0.50421546]
[1733901795454,0.00028425,97700.0,97699.0,0.42121546]
[1733901795660,0.00984338,97700.0,97699.0,0.42121546]
[1733901796066,0.00984338,97700.0,97699.0,0.27121546]
[1733901796326,0.00984338,97700.0,97699.0,0.42121546]
[1733901796446,0.00984338,97700.0,97699.0,0.27121546]
[1733901796649,0.00984338,97700.0,97699.0,0.42121546]
[1733901797972,0.03284338,97700.0,97699.0,0.31589022]
[1733901798476,0.03800992,97700.0,97699.0,0.31589022]
[1733901799136,0.03801618,97700.0,97699.0,0.31589022]
[1733901799330,0.03801618,97700.0,97699.0,0.31555482]
[1733901802681,0.03801618,97700.0,97699.0,0.16555482]
[1733901802906,0.03801618,97700.0,97699.0,0.31555482]
[1733901803307,0.03801618,97700.0,97699.0,0.16555482]
[1733901803511,0.03801618,97700.0,97699.0,0.31555482]
[1733901803733,0.03284964,97700.0,97699.0,0.16555482]
[1733901803935,0.04050734,97700.0,97699.0,0.16555482]
[1733901804139,0.04567632,97700.0,97699.0,0.02277606]
[1733901804337,0.12397632,97700.0,97699.0,0.02277606]
[1733901804553,0.1837064,97700.0,97699.0,0.02277606]
[1733901804755,0.20252591,97700.0,97699.0,0.02277606]
[1733901804981,0.39812107,97700.0,97699.0,0.02277606]
[1733901805112,0.44322107,97700.0,97699.0,0.02277606]
[1733901805517,0.58083953,97700.0,97699.0,0.02277606]
[1733901805722,0.61143431,97700.0,97699.0,0.02277606]
[1733901805948,0.47381585,97700.0,97699.0,0.02277606]
[1733901806151,0.52194179,97700.0,97684.0,0.14277876]
[1733901806361,0.306039,97685.0,97684.0,0.14277876]
[1733901806583,0.36249983,97685.0,97684.0,0.14277876]
[1733901807391,0.023,97682.0,97680.0,8.57e-05]
[1733901807596,0.05551142,97681.0,97680.0,8.57e-05]
[1733901807790,0.06064128,97681.0,97680.0,8.57e-05]
[1733901808168,0.05107589,97681.0,97680.0,8.57e-05]
[1733901808405,0.06062544,97681.0,97680.0,8.57e-05]
[1733901808632,0.26537344,97681.0,97680.0,8.57e-05]
[1733901809184,0.25008859,97681.0,97680.0,8.57e-05]
[1733901809965,0.25208859,97681.0,97680.0,0.0170857]
[1733901810398,0.25208859,97681.0,97680.0,0.15986446]
[1733901810820,0.04734059,97681.0,97680.0,0.15986446]
[1733901811238,0.03968289,97681.0,97680.0,0.15986446]
[1733901811443,0.03968289,97681.0,97680.0,0.15795843]
[1733901811644,0.0473184,97681.0,97680.0,0.15795843]
[1733901811846,0.03968289,97681.0,97680.0,0.15795843]
[1733901812051,0.0473184,97681.0,97680.0,0.15795843]
[1733901812284,0.03968289,97681.0,97680.0,0.15804413]
[1733901815612,0.03012986,97681.0,97680.0,0.15804413]
[1733901816060,0.025,97681.0,97680.0,0.15804413]
[1733901817064,0.03007173,97681.0,97680.0,0.15804413]
[1733901817961,0.025,97681.0,97680.0,0.15804413]
[1733901823607,0.002,97681.0,97680.0,0.41336937]
[1733901823815,0.002,97681.0,97680.0,0.53606937]
[1733901828176,0.002,97681.0,97680.0,0.62786489]
[1733901828588,0.002,97681.0,97680.0,0.53606937]
[1733901829081,0.025,97681.0,97680.0,0.15804413]
[1733901829516,0.03454899,97681.0,97680.0,0.30804413]
[1733901829720,0.03454899,97681.0,97680.0,0.15804413]
[1733901829952,0.05746249,97681.0,97680.0,0.15804413]
[1733901830195,0.14006249,97681.0,97680.0,0.01526537]
[1733901830612,0.14497812,97681.0,97680.0,0.01526537]
[1733901831093,0.14397812,97681.0,97680.0,0.00726537]
[1733901831295,0.14297812,97681.0,97680.0,8.57e-05]
[1733901831519,0.14297812,97681.0,97680.0,0.0040857]
[1733901831732,0.14397812,97681.0,97680.0,0.0130857]
[1733901839174,0.14397736,97681.0,97680.0,0.0130857]
[1733901841300,0.24930107,97681.0,97680.0,0.0130857]
[1733901841727,0.26835023,97681.0,97680.0,0.0130857]
[1733901841931,0.26835023,97681.0,97680.0,0.0040857]
[1733901842142,0.26735023,97681.0,97680.0,0.0040857]
[1733901842356,0.26735023,97681.0,97680.0,0.0050857]
[1733901842765,0.41735023,97681.0,97680.0,0.0010857]
[1733901843353,0.173,97679.0,97662.0,0.14277876]
[1733901843561,0.023,97677.0,97662.0,0.14277876]
[1733901843892,0.04467899,97678.0,97652.0,0.204807]
[1733901843893,0.023,97666.0,97664.0,0.14277876]
[1733901844147,0.00954488,97665.0,97662.0,0.14277876]
[1733901844352,0.023,97664.0,97662.0,0.14277876]
[1733901844552,0.03739728,97664.0,97655.0,0.14277876]
[1733901844763,0.023,97662.0,97653.0,0.14277876]
[1733901844967,0.023,97660.0,97651.0,0.0488]
[1733901845180,0.023,97658.0,97653.0,0.14294347]
[1733901845607,0.023,97665.0,97657.0,0.14277876]
[1733901845814,0.023,97663.0,97657.0,0.14277876]
[1733901846020,0.023,97661.0,97657.0,0.14277876]
[1733901846222,0.01054172,97660.0,97657.0,0.14277876]
[1733901846432,0.00954081,97659.0,97657.0,0.14277876]
[1733901846631,0.023,97658.0,97657.0,0.14277876]
[1733901846837,0.00954081,97662.0,97657.0,0.15377876]
[1733901847048,0.00863338,97665.0,97657.0,0.15377876]
[1733901847049,0.03254081,97661.0,97657.0,0.15377876]
[1733901847252,0.023,97659.0,97657.0,0.14577876]
[1733901847465,0.023,97659.0,97657.0,0.14277876]
[1733901847680,0.00763338,97665.0,97657.0,0.14277876]
[1733901847681,0.03254081,97663.0,97657.0,0.14777876]
[1733901847883,0.023,97661.0,97657.0,0.14777876]
[1733901848086,0.00953956,97660.0,97657.0,0.14777876]
[1733901848287,0.023,97659.0,97657.0,0.14777876]
[1733901848622,0.001,97660.0,97657.0,0.15677876]
[1733901849117,0.001,97660.0,97657.0,0.15177876]
[1733901849610,0.023,97663.0,97657.0,0.14277876]
[1733901849814,0.023,97661.0,97657.0,0.14677876]
[1733901850097,0.00953956,97661.0,97657.0,0.14677876]
[1733901850233,0.001,97659.0,97657.0,0.15177876]
[1733901850469,0.023,97660.0,97657.0,0.14777876]
[1733901850663,0.023,97667.0,97657.0,0.14777876]
[1733901850871,0.00953956,97666.0,97657.0,0.14777876]
[1733901851114,0.023,97664.0,97657.0,0.14777876]
[1733901851317,0.023,97662.0,97657.0,0.14777876]
[1733901851720,0.023,97660.0,97657.0,0.14777876]
[1733901851921,0.023,97660.0,97657.0,0.14277876]
[1733901852136,0.001,97663.0,97657.0,0.15177876]
[1733901852324,0.023,97667.0,97659.0,0.14277876]
[1733901852325,0.00953711,97662.0,97659.0,0.14277876]
[1733901852562,0.023,97660.0,97659.0,0.14277876]
[1733901853172,0.0278249,97660.0,97659.0,0.14277876]
[1733901853604,0.023,97658.0,97657.0,0.014]
[1733901853805,0.023,97658.0,97657.0,0.005]
[1733901853932,0.02782488,97658.0,97655.0,0.14277876]
[1733901854142,0.02782488,97658.0,97653.0,0.00016471]
[1733901854730,0.03736209,97658.0,97653.0,0.00016471]
[1733901855081,0.023,97656.0,97653.0,0.00016471]
[1733901855290,0.02782488,97658.0,97653.0,0.00016471]
[1733901855500,0.00482486,97655.0,97653.0,0.00016471]
[1733901855702,0.023,97654.0,97653.0,0.00016471]
[1733901855874,0.02781489,97654.0,97653.0,0.00916471]
[1733901856241,0.03736046,97654.0,97653.0,0.01416471]
[1733901856430,0.03736046,97654.0,97653.0,0.15694347]
[1733901856668,0.03736046,97654.0,97653.0,0.21914347]
[1733901856669,0.023,97654.0,97653.0,0.21914347]
[1733901856877,0.03254557,97656.0,97653.0,0.22214347]
[1733901857086,0.001,97654.0,97653.0,0.22914347]
[1733901857294,0.03355108,97654.0,97653.0,0.22914347]
[1733901858143,0.03355126,97654.0,97653.0,0.22914347]
[1733901858394,0.023,97654.0,97653.0,0.22214347]
[1733901858598,0.03255888,97654.0,97653.0,0.23114347]
[1733901858802,0.03355888,97654.0,97653.0,0.22814347]
[1733901859004,0.03255888,97654.0,97653.0,0.21914347]
[1733901859231,0.04020599,97654.0,97653.0,0.22514347]
[1733901859432,0.04120599,97654.0,97653.0,0.23214347]
[1733901859636,0.04120599,97654.0,97653.0,0.22614347]
[1733901859840,0.04120599,97654.0,97653.0,0.22914347]
[1733901864827,0.04120599,97654.0,97653.0,0.01]
[1733901865037,0.04120599,97654.0,97653.0,0.15277876]
[1733901865457,0.04602088,97654.0,97653.0,0.15277876]
[1733901865664,0.04120599,97654.0,97653.0,0.15277876]
[1733901868197,0.04122377,97654.0,97653.0,0.15277876]
[1733901868409,0.03356876,97654.0,97653.0,0.15277876]
[1733901868616,0.04122587,97654.0,97653.0,0.15277876]
[1733901874799,0.024,97654.0,97653.0,0.15277876]
[1733901875005,0.04123926,97654.0,97653.0,0.15277876]
[1733901875215,0.04123956,97654.0,97653.0,0.15277876]
[1733901875869,0.05350078,97654.0,97653.0,0.17277876]
[1733901876081,0.04123956,97654.0,97653.0,0.17277876]
[1733901878226,0.03166324,97654.0,97653.0,0.17277876]
[1733901878440,0.0412423,97654.0,97653.0,0.17277876]
[1733901884970,0.04124182,97654.0,97653.0,0.17277876]
[1733901887142,0.04124182,97654.0,97653.0,0.26489619]
[1733901888265,0.04124154,97654.0,97653.0,0.26489619]
[1733901889227,0.04124154,97654.0,97653.0,0.17277876]
[1733901889442,0.04124154,97654.0,97653.0,0.15277876]
[1733901890126,0.04124154,97654.0,97653.0,0.28577876]
[1733901891649,0.04124231,97654.0,97653.0,0.28577876]
[1733901894216,0.04124231,97654.0,97653.0,0.391104]
[1733901894444,0.01057858,97654.0,97653.0,0.541104]
[1733901894644,0.01057858,97654.0,97653.0,0.77158547]
[1733901894851,0.01057858,97654.0,97653.0,0.541104]
[1733901895113,0.01057985,97654.0,97653.0,0.541104]
[1733901895327,0.001,97654.0,97653.0,0.96768177]
[1733901895550,0.001,97654.0,97653.0,0.691104]
[1733901896171,0.001,97654.0,97653.0,0.71201316]
[1733901896622,6e-07,97660.0,97659.0,0.93057276]
[1733901896839,6e-07,97660.0,97659.0,1.035898]
[1733901897484,6e-07,97660.0,97659.0,1.06627371]
[1733901898163,0.0010006,97660.0,97659.0,1.08427371]
[1733901898409,0.0010006,97660.0,97659.0,1.053898]
[1733901902543,0.0010006,97660.0,97659.0,1.32944718]
[1733901902965,0.0010006,97660.0,97659.0,1.053898]
[1733901904652,0.0010006,97660.0,97659.0,1.32929885]
[1733901904877,0.0010006,97660.0,97659.0,1.053898]
[1733901909101,0.0010006,97660.0,97659.0,0.903898]
[1733901909914,0.0010006,97660.0,97659.0,0.76111924]
[1733901910199,0.0010006,97660.0,97659.0,0.903898]
[1733901910959,0.0010006,97660.0,97659.0,0.76111924]
[1733901911216,0.0010006,97660.0,97659.0,0.903898]
[1733901911997,0.0010006,97660.0,97659.0,0.99564669]
[1733901912715,0.0010006,97660.0,97659.0,0.99565127]
[1733901912968,0.0010006,97660.0,97659.0,0.84565127]
[1733901913210,0.0010006,97660.0,97659.0,0.903898]
[1733901913444,0.0010006,97660.0,97659.0,0.99565127]
[1733901914478,0.0010006,97660.0,97659.0,0.99565158]
[1733901914984,0.0010006,97660.0,97659.0,0.753898]
[1733901915246,0.0010006,97660.0,97659.0,0.903898]
[1733901915737,0.0010006,97660.0,97659.0,0.753898]
[1733901916232,0.0010006,97660.0,97659.0,0.903898]
[1733901918387,0.0010006,97660.0,97659.0,0.770898]
[1733901920869,0.0010006,97660.0,97659.0,0.266104]
[1733901921115,0.0010006,97660.0,97659.0,0.018]
[1733901921364,0.03355172,97660.0,97659.0,0.018]
[1733901921627,0.12148578,97660.0,97659.0,0.018]
[1733901922116,0.12048578,97660.0,97659.0,0.15177876]
[1733901922354,0.11385172,97660.0,97659.0,0.009]
[1733901922600,0.11385172,97660.0,97659.0,0.15177876]
[1733901922841,0.11285172,97660.0,97659.0,0.14277876]
[1733901923082,0.11285172,97660.0,97659.0,0.14677876]
[1733901923322,0.12048578,97660.0,97659.0,0.15277876]
[1733901923582,0.11285172,97660.0,97659.0,0.15277876]
[1733901923837,0.11285172,97660.0,97659.0,0.14677876]
[1733901924090,0.11285172,97660.0,97659.0,0.14877876]
[1733901924347,0.15975172,97660.0,97659.0,0.14877876]
[1733901925357,0.15975172,97660.0,97659.0,0.14277876]
[1733901925875,0.15975172,97660.0,97659.0,0.14777876]
[1733901927637,0.1502006,97660.0,97659.0,0.14777876]
[1733901927868,0.15975172,97660.0,97659.0,0.14777876]
[1733901928107,0.1502006,97660.0,97659.0,0.14777876]
[1733901928371,0.1033006,97660.0,97659.0,0.14777876]
[1733901928604,0.0230006,97660.0,97659.0,0.14777876]
[1733901928847,6e-07,97660.0,97659.0,0.14777876]
[1733901929334,0.0230006,97660.0,97659.0,0.14777876]
[1733901929571,6e-07,97660.0,97659.0,0.14777876]
[1733901930571,0.0230006,97660.0,97659.0,0.14777876]
[1733901931106,6e-07,97660.0,97659.0,0.14777876]
[1733901931335,0.0230006,97660.0,97659.0,0.14777876]
[1733901931772,6e-07,97660.0,97659.0,0.14777876]
[1733901932020,0.0230006,97660.0,97659.0,0.14777876]
[1733901932507,6e-07,97660.0,97659.0,0.14777876]
[1733901932756,0.0230006,97660.0,97659.0,0.14777876]
[1733901933145,0.03254128,97660.0,97659.0,0.14777876]
[1733901933490,6e-07,97660.0,97659.0,0.14777876]
[1733901933986,0.0230006,97660.0,97659.0,0.14777876]
[1733901934481,0.03254371,97660.0,97659.0,0.14777876]
[1733901937219,6e-07,97660.0,97659.0,0.14777876]
[1733901938690,0.0230006,97660.0,97659.0,0.14777876]
[1733901939106,6e-07,97660.0,97659.0,0.14777876]
[1733901939338,6e-07,97660.0,97659.0,0.328304]
[1733901939339,0.00954371,97660.0,97659.0,0.328304]
[1733901939541,0.0230006,97660.0,97659.0,0.328304]
[1733901939768,6e-07,97660.0,97659.0,0.377304]
[1733901941296,6e-07,97660.0,97659.0,0.376304]
[1733901941716,6e-07,97660.0,97659.0,0.377304]
[1733901942140,6e-07,97660.0,97659.0,0.376304]
[1733901942350,6e-07,97660.0,97659.0,0.381304]
[1733901942968,6e-07,97660.0,97659.0,0.377304]
[1733901943423,6e-07,97660.0,97659.0,0.386304]
[1733901945086,6e-07,97660.0,97659.0,0.15677876]
[1733901945302,0.03256669,97660.0,97659.0,0.15677876]
[1733901950194,0.0402242,97660.0,97659.0,0.15677876]
[1733901950463,0.0402242,97660.0,97659.0,0.014]
[1733901950680,0.0402242,97660.0,97659.0,0.15677876]
[1733901952004,0.0402242,97660.0,97659.0,0.343104]
[1733901952429,0.03256669,97660.0,97659.0,0.343104]
[1733901955896,0.04022448,97660.0,97659.0,0.262104]
[1733901956525,0.0306587,97660.0,97659.0,0.262104]
[1733901956930,0.04023143,97660.0,97659.0,0.262104]
[1733901959929,0.04023336,97660.0,97659.0,0.262104]
[1733901960714,0.04023336,97660.0,97659.0,0.344904]
[1733901961742,0.04023336,97660.0,97659.0,0.262104]
[1733901962149,0.04023565,97660.0,97659.0,0.262104]
[1733901966735,0.0524917,97660.0,97659.0,0.262104]
[1733901967756,0.0524917,97660.0,97659.0,0.257104]
[1733901967912,0.04023565,97660.0,97659.0,0.257104]
[1733901968744,0.04024502,97660.0,97659.0,0.257104]
[1733901975496,0.0230006,97660.0,97659.0,0.257104]
[1733901975708,0.03067008,97660.0,97659.0,0.257104]
[1733901975924,0.04025694,97660.0,97659.0,0.257104]
[1733901978411,0.04025918,97660.0,97659.0,0.257104]
[1733901979237,0.04025918,97660.0,97659.0,0.34922993]
[1733901979440,0.04025918,97660.0,97659.0,0.30606875]
[1733901979640,0.04025918,97660.0,97659.0,0.21394282]
[1733901979884,0.04025918,97660.0,97659.0,0.30608446]
[1733901981119,0.04025918,97660.0,97659.0,0.09214164]
[1733901981332,0.05253412,97660.0,97656.0,0.09214164]
[1733901981565,0.05253352,97659.0,97656.0,0.09214164]
[1733901981774,6e-07,97660.0,97655.0,0.09214164]
[1733901981775,0.01994427,97658.0,97655.0,0.09214164]
[1733901981982,0.04294427,97657.0,97655.0,0.09214164]
[1733901982190,0.023,97655.0,97654.0,0.20075922]
[1733901982395,0.023,97655.0,97654.0,0.10861758]
[1733901982396,0.04025946,97655.0,97654.0,0.10861758]
[1733901982954,0.04025946,97655.0,97654.0,0.25861758]
[1733901983740,0.04025946,97655.0,97654.0,0.26461758]
[1733901983972,0.04125946,97655.0,97654.0,0.26461758]
[1733901984330,0.04025783,97655.0,97654.0,0.35078641]
[1733901984530,0.04125783,97655.0,97654.0,0.35678641]
[1733901984732,0.04125783,97655.0,97654.0,0.36178641]
[1733901985146,0.04125612,97655.0,97654.0,0.36178641]
[1733901985353,0.04125612,97655.0,97654.0,0.35678641]
[1733901985556,0.04125612,97655.0,97654.0,0.36078641]
[1733901985965,0.04125612,97655.0,97654.0,0.20478641]
[1733901985966,0.04025612,97655.0,97654.0,0.20478641]
[1733901986172,0.04025612,97655.0,97654.0,0.36378641]
[1733901986380,0.04125612,97655.0,97654.0,0.35978641]
[1733901986603,0.04025612,97655.0,97654.0,0.35078641]
[1733901987011,0.04125612,97655.0,97654.0,0.35878641]
[1733901987695,0.04125612,97655.0,97654.0,0.36278641]
[1733901987896,0.04025612,97655.0,97654.0,0.35478641]
[1733901988054,0.04025612,97655.0,97654.0,0.35078641]
[1733901988257,0.04025612,97655.0,97654.0,0.35378641]
[1733901988460,0.04025582,97655.0,97654.0,0.35378641]
[1733901989303,0.04125582,97655.0,97654.0,0.36178641]
[1733901989700,0.04025582,97655.0,97654.0,0.35378641]
[1733901989954,0.04125582,97655.0,97654.0,0.36078641]
[1733901990187,0.04125582,97655.0,97654.0,0.26861758]
[1733901991552,0.03166886,97655.0,97654.0,0.26861758]
[1733901991774,0.04125533,97655.0,97654.0,0.26861758]
[1733901994925,0.03166886,97655.0,97654.0,0.26861758]
[1733901995177,0.04125484,97655.0,97654.0,0.26861758]
[1733901996669,0.03358598,97655.0,97654.0,0.53788579]
[1733901996861,0.04125512,97655.0,97654.0,0.53788579]
[1733901997077,0.03358598,97655.0,97654.0,0.39961758]
[1733901998169,0.024,97655.0,97654.0,0.39961758]
[1733901998369,0.03358649,97655.0,97654.0,0.39961758]
[1733902001469,0.0335854,97655.0,97654.0,0.39961758]
[1733902004694,0.024,97655.0,97654.0,0.39961758]
[1733902004895,0.03358538,97655.0,97654.0,0.39961758]
[1733902011361,0.024,97655.0,97654.0,0.50494282]
[1733902011582,0.03358212,97655.0,97654.0,0.50494282]
[1733902012055,0.03358212,97655.0,97654.0,0.68923108]
[1733902013544,0.01058212,97655.0,97654.0,0.68923108]
[1733902014017,0.01058212,97655.0,97654.0,0.50494282]
[1733902014438,0.001,97655.0,97654.0,0.50494282]
[1733902015210,0.001,97655.0,97654.0,0.50194282]
[1733902015901,0.001,97655.0,97654.0,0.50494282]
[1733902016877,6e-07,97660.0,97659.0,0.204794]
[1733902017036,6e-07,97660.0,97659.0,0.39221924]
[1733902017239,6e-07,97660.0,97659.0,0.54221924]
[1733902018446,6e-07,97660.0,97659.0,0.55591043]
[1733902018809,6e-07,97660.0,97659.0,0.66452801]
[1733902019192,6e-07,97660.0,97659.0,0.71032801]
[1733902020898,6e-07,97660.0,97659.0,0.70932801]
[1733902023621,6e-07,97660.0,97659.0,0.93933381]
[1733902025266,6e-07,97660.0,97659.0,0.89353381]
[1733902025480,6e-07,97660.0,97659.0,0.71942372]
[1733902029330,6e-07,97660.0,97659.0,0.58142801]
[1733902029736,6e-07,97660.0,97659.0,0.66112801]
[1733902029939,6e-07,97660.0,97659.0,0.84512229]
[1733902030151,6e-07,97660.0,97659.0,0.66112801]
[1733902030327,6e-07,97660.0,97659.0,0.89113381]
[1733902030547,6e-07,97660.0,97659.0,0.66112801]
[1733902031226,6e-07,97660.0,97659.0,0.71032801]
[1733902032117,6e-07,97660.0,97659.0,0.94033381]
[1733902032579,6e-07,97660.0,97659.0,0.71032801]
[1733902038267,6e-07,97660.0,97659.0,0.94033381]
[1733902040308,6e-07,97660.0,97659.0,0.71032801]
[1733902051900,6e-07,97660.0,97659.0,0.58142801]
[1733902057817,6e-07,97660.0,97659.0,0.66042801]
[1733902060101,6e-07,97660.0,97659.0,0.93656682]
[1733902063392,6e-07,97660.0,97659.0,0.66042801]
[1733902063711,6e-07,97660.0,97659.0,0.93687042]
[1733902071488,6e-07,97660.0,97659.0,0.66042801]
[1733902085066,6e-07,97660.0,97659.0,0.37794282]
[1733902085248,0.03067043,97660.0,97659.0,0.22794282]
[1733902085449,0.04025208,97660.0,97659.0,0.5162003]
[1733902085660,0.04025208,97660.0,97659.0,0.37794282]
[1733902086074,0.04025208,97660.0,97659.0,0.76707208]
[1733902086276,0.03258789,97660.0,97659.0,0.58273682]
[1733902086496,0.03258789,97660.0,97659.0,0.76702819]
[1733902087046,0.03258789,97660.0,97659.0,0.58273682]
[1733902087688,6e-07,97660.0,97659.0,0.58273682]
[1733902087891,0.03257748,97660.0,97659.0,0.58273682]
[1733902088883,0.03257748,97660.0,97659.0,0.37794282]
[1733902089276,0.03257748,97660.0,97659.0,0.51611281]
[1733902089487,0.03257748,97660.0,97659.0,0.30216999]
[1733902090191,0.03257748,97660.0,97659.0,0.26078757]
[1733902090429,0.03257748,97660.0,97659.0,0.41078757]
[1733902091184,6e-07,97660.0,97659.0,0.27261758]
[1733902091500,0.03257488,97660.0,97659.0,0.41078757]
[1733902091728,0.03257488,97660.0,97659.0,0.27261758]
[1733902093478,6e-07,97660.0,97659.0,0.27261758]
[1733902098237,6e-07,97660.0,97659.0,0.36468516]
[1733902098844,6e-07,97660.0,97659.0,0.25606758]
[1733902099208,0.04022863,97660.0,97659.0,0.014]
[1733902100875,0.04022405,97660.0,97659.0,0.014]
[1733902102268,0.04022405,97660.0,97659.0,0.005]
[1733902102667,0.023,97659.0,97658.0,0.10861758]
[1733902102921,0.04022345,97659.0,97658.0,0.10861758]
[1733902103892,0.04022345,97659.0,97658.0,0.10961758]
[1733902104565,0.04022345,97659.0,97658.0,0.29674282]
[1733902104689,6e-07,97660.0,97658.0,0.29674282]
[1733902104690,6e-07,97660.0,97659.0,0.31341158]
[1733902105077,6e-07,97660.0,97659.0,0.63856833]
[1733902105205,6e-07,97660.0,97659.0,0.50053682]
[1733902105607,0.00764975,97679.0,97678.0,0.10861758]
[1733902105840,0.00781442,97679.0,97678.0,0.10861758]
[1733902106851,0.03081442,97679.0,97678.0,0.10861758]
[1733902107085,0.02316467,97679.0,97678.0,0.10861758]
[1733902107204,0.00016467,97679.0,97678.0,0.10861758]
[1733902110260,0.00016467,97679.0,97678.0,0.11461758]
[1733902112254,0.00016467,97679.0,97678.0,0.11261758]
[1733902112426,0.00016467,97679.0,97678.0,0.11461758]
[1733902113897,0.00016467,97679.0,97678.0,0.20656752]
[1733902114240,0.00016467,97679.0,97678.0,0.11461758]
[1733902114987,0.00016467,97679.0,97678.0,0.21994282]
[1733902115408,0.00016467,97679.0,97678.0,0.36994282]
[1733902116249,0.00016467,97679.0,97678.0,0.45174282]
[1733902116457,0.00016467,97679.0,97678.0,0.59276281]
[1733902118151,0.00016467,97679.0,97678.0,0.50084282]
[1733902122622,0.00016467,97679.0,97678.0,0.63857803]
[1733902123291,0.00016467,97679.0,97678.0,0.63457803]
[1733902123705,0.00016467,97679.0,97678.0,0.64357803]
[1733902124121,0.00016467,97679.0,97678.0,0.50384282]
[1733902124542,0.00016467,97679.0,97678.0,0.50884282]
[1733902126220,0.00016467,97679.0,97678.0,0.60061579]
[1733902128165,0.00016467,97679.0,97678.0,0.50884282]
[1733902130280,7.994e-05,97680.0,97678.0,0.50884282]
[1733902130525,0.00016418,97680.0,97679.0,0.31007724]
[1733902131129,0.00016418,97680.0,97679.0,0.46007724]
[1733902131785,0.00016418,97680.0,97679.0,0.46907724]
[1733902133358,0.00016418,97680.0,97679.0,0.47407724]
[1733902147154,0.00016418,97680.0,97679.0,0.56580689]
[1733902148191,0.00016418,97680.0,97679.0,0.61167172]
[1733902149225,0.00016418,97680.0,97679.0,0.65753655]
[1733902149427,0.00016418,97680.0,97679.0,0.65786846]
[1733902150263,0.00016418,97680.0,97679.0,0.70381627]
[1733902151513,0.00016418,97680.0,97679.0,0.47407724]
[1733902160193,0.00016418,97680.0,97679.0,0.75027993]
[1733902161720,0.00016418,97680.0,97679.0,0.75041283]
[1733902163132,0.00016418,97680.0,97679.0,0.7504282]
[1733902164129,0.00016418,97680.0,97679.0,0.47407724]
[1733902169861,0.00016418,97680.0,97679.0,0.75049025]
[1733902170543,0.00016418,97680.0,97679.0,0.47407724]
[1733902170910,0.00016418,97680.0,97679.0,0.7504797]
[1733902171339,0.00016418,97680.0,97679.0,0.47407724]